[Event "*** Titled Tuesday Blitz"]
[Site "Chess.com"]
[Date "2021.03.02"]
[Round "6"]
[White "Ali-Farahat"]
[Black "miredenizdogan"]
[Result "0-1"]
[WhiteElo "2403"]
[BlackElo "2308"]
[TimeControl "180+1"]
[EndTime "11:07:03 PST"]
[Termination "miredenizdogan won by resignation"]

1. e4 {[%clk 0:03:00.9]} 1... e6 {[%clk 0:02:59.1]} 2. d4 {[%clk 0:03:00.3]}
2... d5 {[%clk 0:02:59.4]} 3. Nd2 {[%clk 0:03:01.2]} 3... dxe4 {[%clk
0:02:58.4]} 4. Nxe4 {[%clk 0:03:01.2]} 4... Nd7 {[%clk 0:02:59.3]} 5. Nf3 {[%clk
0:03:00.6]} 5... Ngf6 {[%clk 0:02:59.7]} 6. Nxf6+ {[%clk 0:02:59.6]} 6... Nxf6
{[%clk 0:02:59.4]} 7. Bg5 {[%clk 0:02:52]} 7... c5 {[%clk 0:02:57]} 8. Bb5+
{[%clk 0:02:49.3]} 8... Bd7 {[%clk 0:02:56.6]} 9. Bxd7+ {[%clk 0:02:49.2]} 9...
Qxd7 {[%clk 0:02:54.7]} 10. Qe2 {[%clk 0:02:49.6]} 10... cxd4 {[%clk 0:02:37.8]}
11. O-O-O {[%clk 0:02:49.1]} 11... Bc5 {[%clk 0:02:37.8]} 12. Nxd4 {[%clk
0:02:48.4]} 12... Bxd4 {[%clk 0:02:35.5]} 13. Bxf6 {[%clk 0:02:48.5]} 13... gxf6
{[%clk 0:02:24]} 14. c3 {[%clk 0:02:48.4]} 14... O-O-O {[%clk 0:01:59.5]} 15.
Rxd4 {[%clk 0:02:46.1]} 15... Qe7 {[%clk 0:01:44.1]} 16. Qc4+ {[%clk 0:02:31.5]}
16... Kb8 {[%clk 0:01:43.5]} 17. Rhd1 {[%clk 0:02:31.1]} 17... Rxd4 {[%clk
0:01:39.5]} 18. Qxd4 {[%clk 0:02:32]} 18... Rg8 {[%clk 0:01:32.5]} 19. g3 {[%clk
0:02:31.3]} 19... Rc8 {[%clk 0:01:20.4]} 20. Qd7 {[%clk 0:02:14.4]} 20... Rc7
{[%clk 0:00:57.6]} 21. Qd8+ {[%clk 0:02:12]} 21... Qxd8 {[%clk 0:00:51.3]} 22.
Rxd8+ {[%clk 0:02:12.9]} 22... Rc8 {[%clk 0:00:52]} 23. Rxc8+ {[%clk 0:02:13.2]}
23... Kxc8 {[%clk 0:00:52.9]} 24. Kd2 {[%clk 0:02:13.6]} 24... Kd7 {[%clk
0:00:50.8]} 25. Ke3 {[%clk 0:02:13.8]} 25... Kd6 {[%clk 0:00:51.7]} 26. Kf4
{[%clk 0:02:13.8]} 26... Kd5 {[%clk 0:00:46.9]} 27. b3 {[%clk 0:02:13.3]} 27...
b5 {[%clk 0:00:39.1]} 28. f3 {[%clk 0:02:08.6]} 28... a5 {[%clk 0:00:37.3]} 29.
Ke3 {[%clk 0:01:49.6]} 29... f5 {[%clk 0:00:36.9]} 30. h4 {[%clk 0:01:15.2]}
30... h5 {[%clk 0:00:34.2]} 31. Kf4 {[%clk 0:01:06.3]} 31... f6 {[%clk
0:00:33.9]} 32. c4+ {[%clk 0:00:55.6]} 32... bxc4 {[%clk 0:00:33.4]} 33. bxc4+
{[%clk 0:00:56.5]} 33... Kxc4 {[%clk 0:00:32.9]} 34. g4 {[%clk 0:00:56.5]} 34...
fxg4 {[%clk 0:00:33]} 35. fxg4 {[%clk 0:00:56.6]} 35... e5+ {[%clk 0:00:32.4]}
36. Kg3 {[%clk 0:00:53.6]} 36... Kd5 {[%clk 0:00:24.7]} 37. gxh5 {[%clk
0:00:53]} 37... Ke6 {[%clk 0:00:25]} 38. Kg4 {[%clk 0:00:46.4]} 38... Kf7 {[%clk
0:00:24.8]} 39. Kf5 {[%clk 0:00:46.3]} 39... Kg7 {[%clk 0:00:24.9]} 40. Kg4
{[%clk 0:00:32.5]} 40... Kh6 {[%clk 0:00:24.6]} 41. a4 {[%clk 0:00:32.2]} 41...
e4 {[%clk 0:00:22.7]} 42. Kf4 {[%clk 0:00:26.8]} 42... f5 {[%clk 0:00:22.9]} 0-1

[Event "*** Titled Tuesday Blitz"]
[Site "Chess.com"]
[Date "2021.03.02"]
[Round "6"]
[White "Volodar_Murzin"]
[Black "sergeikim"]
[Result "1-0"]
[WhiteElo "2691"]
[BlackElo "2518"]
[TimeControl "180+1"]
[EndTime "11:07:04 PST"]
[Termination "Volodar_Murzin won on time"]

1. e4 {[%clk 0:03:00.9]} 1... e5 {[%clk 0:02:59.6]} 2. Nf3 {[%clk 0:02:54.2]}
2... Nc6 {[%clk 0:02:59.7]} 3. Bc4 {[%clk 0:02:50.8]} 3... Bc5 {[%clk
0:02:58.5]} 4. O-O {[%clk 0:02:50.8]} 4... Nf6 {[%clk 0:02:58.5]} 5. d3 {[%clk
0:02:50.4]} 5... d6 {[%clk 0:02:58.6]} 6. c3 {[%clk 0:02:48.9]} 6... a6 {[%clk
0:02:57.7]} 7. a4 {[%clk 0:02:48.2]} 7... Ba7 {[%clk 0:02:57.6]} 8. b4 {[%clk
0:02:48]} 8... O-O {[%clk 0:02:57.2]} 9. h3 {[%clk 0:02:47]} 9... h6 {[%clk
0:02:53.2]} 10. Be3 {[%clk 0:02:41.4]} 10... Be6 {[%clk 0:02:51.9]} 11. Nbd2
{[%clk 0:02:30.2]} 11... Re8 {[%clk 0:02:42.8]} 12. b5 {[%clk 0:02:26]} 12...
Ne7 {[%clk 0:02:38.4]} 13. Bxe6 {[%clk 0:02:18]} 13... fxe6 {[%clk 0:02:37.6]}
14. Nc4 {[%clk 0:02:18.2]} 14... Ng6 {[%clk 0:02:08.7]} 15. Qb3 {[%clk
0:02:06.7]} 15... Bxe3 {[%clk 0:01:57.7]} 16. fxe3 {[%clk 0:02:03.3]} 16... axb5
{[%clk 0:01:41.9]} 17. axb5 {[%clk 0:02:02]} 17... Rxa1 {[%clk 0:01:40.8]} 18.
Rxa1 {[%clk 0:02:00]} 18... Nh5 {[%clk 0:01:40.4]} 19. Ra7 {[%clk 0:01:54.6]}
19... Rf8 {[%clk 0:01:36.9]} 20. Rxb7 {[%clk 0:01:44.9]} 20... Rxf3 {[%clk
0:01:32.1]} 21. gxf3 {[%clk 0:01:40.9]} 21... Qg5+ {[%clk 0:01:31.2]} 22. Kf2
{[%clk 0:01:39.5]} 22... Nh4 {[%clk 0:01:24.8]} 23. Ke2 {[%clk 0:01:32.7]} 23...
Qg2+ {[%clk 0:01:19.1]} 24. Kd1 {[%clk 0:01:31.1]} 24... Nxf3 {[%clk 0:01:00.1]}
25. Kc1 {[%clk 0:01:29.1]} 25... Ng3 {[%clk 0:00:55.9]} 26. Qc2 {[%clk
0:01:00.9]} 26... Qf1+ {[%clk 0:00:50.8]} 27. Qd1 {[%clk 0:00:31.9]} 27... Qf2
{[%clk 0:00:16.8]} 28. Rb8+ {[%clk 0:00:25.5]} 28... Kh7 {[%clk 0:00:15.4]} 29.
Rf8 {[%clk 0:00:18.3]} 29... Ne2+ {[%clk 0:00:10.1]} 30. Kb2 {[%clk 0:00:17.9]}
30... Nf4+ {[%clk 0:00:06.6]} 31. Kb3 {[%clk 0:00:14.5]} 1-0

[Event "*** Titled Tuesday Blitz"]
[Site "Chess.com"]
[Date "2021.03.02"]
[Round "6"]
[White "elohunter1999"]
[Black "Matensien"]
[Result "1-0"]
[WhiteElo "2626"]
[BlackElo "2494"]
[TimeControl "180+1"]
[EndTime "11:07:05 PST"]
[Termination "elohunter1999 won by resignation"]

1. Nf3 {[%clk 0:03:00.9]} 1... Nf6 {[%clk 0:02:59.2]} 2. c4 {[%clk 0:02:59.2]}
2... g6 {[%clk 0:02:59.6]} 3. Nc3 {[%clk 0:02:58.9]} 3... Bg7 {[%clk 0:02:59.8]}
4. e4 {[%clk 0:02:58.7]} 4... c5 {[%clk 0:03:00.3]} 5. d4 {[%clk 0:02:55.8]}
5... cxd4 {[%clk 0:03:00.5]} 6. Nxd4 {[%clk 0:02:56.7]} 6... Nc6 {[%clk
0:03:00.7]} 7. Be3 {[%clk 0:02:55.8]} 7... d6 {[%clk 0:03:00.1]} 8. Be2 {[%clk
0:02:54.8]} 8... O-O {[%clk 0:03:00.7]} 9. O-O {[%clk 0:02:54.9]} 9... Bd7
{[%clk 0:03:01.4]} 10. Qd2 {[%clk 0:02:54.4]} 10... Nxd4 {[%clk 0:03:01.7]} 11.
Bxd4 {[%clk 0:02:54.3]} 11... Bc6 {[%clk 0:03:02.4]} 12. f3 {[%clk 0:02:51.9]}
12... a5 {[%clk 0:03:03]} 13. b3 {[%clk 0:02:44.7]} 13... Nd7 {[%clk 0:02:55.4]}
14. Be3 {[%clk 0:02:43.9]} 14... Nc5 {[%clk 0:02:55.8]} 15. Rac1 {[%clk
0:02:34.7]} 15... e6 {[%clk 0:02:49.9]} 16. Rfd1 {[%clk 0:02:22.6]} 16... Be5
{[%clk 0:02:48.9]} 17. Bf1 {[%clk 0:02:21.2]} 17... Qe7 {[%clk 0:02:22.9]} 18.
Ne2 {[%clk 0:02:13.6]} 18... Rfd8 {[%clk 0:02:20.8]} 19. Nd4 {[%clk 0:02:08]}
19... h5 {[%clk 0:01:33.3]} 20. Qf2 {[%clk 0:01:50.7]} 20... Rdc8 {[%clk
0:01:21.2]} 21. Rd2 {[%clk 0:01:42]} 21... Qf6 {[%clk 0:01:21]} 22. Rcd1 {[%clk
0:01:38.5]} 22... Rd8 {[%clk 0:01:09.3]} 23. g3 {[%clk 0:01:36.7]} 23... Qe7
{[%clk 0:01:05.9]} 24. Bg2 {[%clk 0:01:35.2]} 24... Bg7 {[%clk 0:00:59.5]} 25.
h4 {[%clk 0:01:27.8]} 25... Qc7 {[%clk 0:00:58.7]} 26. Kh2 {[%clk 0:01:18.9]}
26... Bf6 {[%clk 0:00:41]} 27. Nxc6 {[%clk 0:01:06.4]} 27... bxc6 {[%clk
0:00:38.7]} 28. f4 {[%clk 0:01:04.8]} 28... Bc3 {[%clk 0:00:34.7]} 29. Rc2
{[%clk 0:00:55.9]} 29... Bg7 {[%clk 0:00:35.2]} 30. e5 {[%clk 0:00:55]} 30...
Nb7 {[%clk 0:00:24.8]} 31. Bb6 {[%clk 0:00:53.9]} 31... Qc8 {[%clk 0:00:25.5]}
32. Bxd8 {[%clk 0:00:53.6]} 32... Qxd8 {[%clk 0:00:17.7]} 33. exd6 {[%clk
0:00:53]} 33... Qd7 {[%clk 0:00:15.2]} 34. Qb6 {[%clk 0:00:50.5]} 34... Rc8
{[%clk 0:00:13.4]} 35. c5 {[%clk 0:00:48.2]} 35... Bf6 {[%clk 0:00:12.5]} 36. a3
{[%clk 0:00:41]} 36... Bd8 {[%clk 0:00:09.4]} 37. Qa6 {[%clk 0:00:41]} 37... Bf6
{[%clk 0:00:08.2]} 38. b4 {[%clk 0:00:41]} 38... axb4 {[%clk 0:00:07.3]} 39.
axb4 {[%clk 0:00:41.9]} 39... Nd8 {[%clk 0:00:03.9]} 40. b5 {[%clk 0:00:38.9]}
40... cxb5 {[%clk 0:00:04]} 41. c6 {[%clk 0:00:39.4]} 41... Nxc6 {[%clk
0:00:03.1]} 42. Rxc6 {[%clk 0:00:38.9]} 42... Rxc6 {[%clk 0:00:03]} 43. Qxc6
{[%clk 0:00:38.8]} 1-0

[Event "*** Titled Tuesday Blitz"]
[Site "Chess.com"]
[Date "2021.03.02"]
[Round "6"]
[White "Kaua18"]
[Black "ehrenfeld"]
[Result "0-1"]
[WhiteElo "2339"]
[BlackElo "2498"]
[TimeControl "180+1"]
[EndTime "11:07:06 PST"]
[Termination "ehrenfeld won on time"]

1. e4 {[%clk 0:03:00.6]} 1... e5 {[%clk 0:02:56.5]} 2. Nf3 {[%clk 0:03:00.5]}
2... Nc6 {[%clk 0:02:56.6]} 3. Bb5 {[%clk 0:02:58.8]} 3... a6 {[%clk 0:02:56.5]}
4. Ba4 {[%clk 0:02:58.1]} 4... Nf6 {[%clk 0:02:56.7]} 5. O-O {[%clk 0:02:57.3]}
5... Be7 {[%clk 0:02:56.3]} 6. Re1 {[%clk 0:02:53.5]} 6... b5 {[%clk 0:02:55.9]}
7. Bb3 {[%clk 0:02:48.8]} 7... d6 {[%clk 0:02:56.5]} 8. c3 {[%clk 0:02:47]} 8...
O-O {[%clk 0:02:56.3]} 9. h3 {[%clk 0:02:45.9]} 9... Na5 {[%clk 0:02:56.4]} 10.
Bc2 {[%clk 0:02:29.6]} 10... c5 {[%clk 0:02:56.1]} 11. d4 {[%clk 0:02:27.7]}
11... Qc7 {[%clk 0:02:56.2]} 12. Nbd2 {[%clk 0:02:25.1]} 12... Bd7 {[%clk
0:02:56]} 13. Nf1 {[%clk 0:02:21.2]} 13... Rfe8 {[%clk 0:02:56]} 14. Ng3 {[%clk
0:02:17.2]} 14... Nc4 {[%clk 0:02:55]} 15. b3 {[%clk 0:02:15.1]} 15... Nb6
{[%clk 0:02:54.2]} 16. dxe5 {[%clk 0:02:00.8]} 16... dxe5 {[%clk 0:02:53.6]} 17.
Qe2 {[%clk 0:01:56.5]} 17... a5 {[%clk 0:02:46.6]} 18. c4 {[%clk 0:01:54.3]}
18... b4 {[%clk 0:02:45.2]} 19. Bb2 {[%clk 0:01:54.2]} 19... Bf8 {[%clk
0:02:41.7]} 20. Rad1 {[%clk 0:01:53.2]} 20... g6 {[%clk 0:02:27.1]} 21. Nf1
{[%clk 0:01:44.7]} 21... Bc6 {[%clk 0:02:26.5]} 22. Ne3 {[%clk 0:00:34.5]} 22...
Nbd7 {[%clk 0:01:58.8]} 23. Nd5 {[%clk 0:00:30.2]} 23... Bxd5 {[%clk 0:01:58]}
24. exd5 {[%clk 0:00:28.1]} 24... Bd6 {[%clk 0:01:51.7]} 25. Ng5 {[%clk
0:00:27.8]} 25... a4 {[%clk 0:01:35.7]} 26. Bb1 {[%clk 0:00:27.6]} 26... axb3
{[%clk 0:01:34.6]} 27. axb3 {[%clk 0:00:27.6]} 27... Bf8 {[%clk 0:01:28.7]} 28.
Qf3 {[%clk 0:00:27.7]} 28... Bg7 {[%clk 0:01:22]} 29. Qg3 {[%clk 0:00:27.1]}
29... Nh5 {[%clk 0:01:14.1]} 30. Qf3 {[%clk 0:00:25.8]} 30... Nhf6 {[%clk
0:01:09.8]} 31. d6 {[%clk 0:00:24.9]} 31... Qd8 {[%clk 0:00:58.9]} 32. Qe2
{[%clk 0:00:17.4]} 32... h6 {[%clk 0:00:57.1]} 33. Ne4 {[%clk 0:00:17.4]} 33...
Ra6 {[%clk 0:00:51.3]} 34. f3 {[%clk 0:00:17.5]} 34... Nh5 {[%clk 0:00:49.4]}
35. g3 {[%clk 0:00:10.9]} 35... f5 {[%clk 0:00:48]} 36. g4 {[%clk 0:00:09.9]}
36... Nf4 {[%clk 0:00:47.4]} 37. Qd2 {[%clk 0:00:08.8]} 37... fxe4 {[%clk
0:00:46.6]} 38. Bxe4 {[%clk 0:00:09.7]} 38... Qh4 {[%clk 0:00:44.5]} 39. Qh2
{[%clk 0:00:03.4]} 39... Ra2 {[%clk 0:00:41]} 0-1

[Event "*** Titled Tuesday Blitz"]
[Site "Chess.com"]
[Date "2021.03.02"]
[Round "6"]
[White "Pantata007"]
[Black "LileKoridze"]
[Result "0-1"]
[WhiteElo "2245"]
[BlackElo "2412"]
[TimeControl "180+1"]
[EndTime "11:07:06 PST"]
[Termination "LileKoridze won on time"]

1. d4 {[%clk 0:03:00.9]} 1... Nf6 {[%clk 0:02:59.9]} 2. c4 {[%clk 0:02:59.7]}
2... e6 {[%clk 0:03:00.2]} 3. Nc3 {[%clk 0:03:00.1]} 3... Bb4 {[%clk 0:03:00]}
4. e3 {[%clk 0:03:00.4]} 4... O-O {[%clk 0:02:59.9]} 5. Ne2 {[%clk 0:03:00.9]}
5... d5 {[%clk 0:03:00.5]} 6. a3 {[%clk 0:02:59.1]} 6... Be7 {[%clk 0:03:00.8]}
7. Ng3 {[%clk 0:02:32.2]} 7... c6 {[%clk 0:02:58.4]} 8. Bd3 {[%clk 0:02:31.4]}
8... b6 {[%clk 0:02:56.6]} 9. O-O {[%clk 0:02:30.6]} 9... Ba6 {[%clk 0:02:56.7]}
10. cxd5 {[%clk 0:02:26.4]} 10... Bxd3 {[%clk 0:02:56.1]} 11. Qxd3 {[%clk
0:02:27.3]} 11... cxd5 {[%clk 0:02:52.8]} 12. b4 {[%clk 0:02:07]} 12... Nc6
{[%clk 0:02:51.7]} 13. Bb2 {[%clk 0:02:06]} 13... Rc8 {[%clk 0:02:45.2]} 14.
Rac1 {[%clk 0:01:55.7]} 14... a5 {[%clk 0:02:40.6]} 15. b5 {[%clk 0:01:54.8]}
15... Nb8 {[%clk 0:02:40]} 16. a4 {[%clk 0:01:54.6]} 16... Nbd7 {[%clk
0:02:39.8]} 17. Rfd1 {[%clk 0:01:38.5]} 17... Rc4 {[%clk 0:02:39.4]} 18. e4
{[%clk 0:01:33.5]} 18... Qc7 {[%clk 0:02:37.9]} 19. exd5 {[%clk 0:01:26]} 19...
Rc8 {[%clk 0:02:14.6]} 20. dxe6 {[%clk 0:01:21]} 20... fxe6 {[%clk 0:02:14.4]}
21. h3 {[%clk 0:01:07.4]} 21... Bb4 {[%clk 0:02:05]} 22. Nce4 {[%clk 0:00:44.4]}
22... Nd5 {[%clk 0:01:42.6]} 23. Ng5 {[%clk 0:00:36.6]} 23... Nf8 {[%clk
0:01:35.6]} 24. Qe4 {[%clk 0:00:16.6]} 24... Qe7 {[%clk 0:01:25.8]} 25. Rxc4
{[%clk 0:00:11.1]} 25... Rxc4 {[%clk 0:01:25.3]} 26. Nf3 {[%clk 0:00:05.1]}
26... Bc3 {[%clk 0:01:24.9]} 27. Rc1 {[%clk 0:00:03.2]} 27... Qb4 {[%clk
0:01:18.6]} 28. Bxc3 {[%clk 0:00:02.9]} 28... Nxc3 {[%clk 0:01:18.6]} 29. Qd3
{[%clk 0:00:03.2]} 29... Qxa4 {[%clk 0:01:12.5]} 30. Kh2 {[%clk 0:00:03.5]}
30... Qa3 {[%clk 0:01:04.9]} 31. Qe3 {[%clk 0:00:03.6]} 31... Qb2 {[%clk
0:00:55]} 32. Re1 {[%clk 0:00:03.3]} 32... Nxb5 {[%clk 0:00:52.1]} 33. Qe5
{[%clk 0:00:03.2]} 33... Nxd4 {[%clk 0:00:48.8]} 34. Nxd4 {[%clk 0:00:02.9]}
34... Qxd4 {[%clk 0:00:49.1]} 35. Qxd4 {[%clk 0:00:02.8]} 35... Rxd4 {[%clk
0:00:50]} 36. Rb1 {[%clk 0:00:02.8]} 36... Rd6 {[%clk 0:00:48.8]} 37. Ne4 {[%clk
0:00:03.1]} 37... Rc6 {[%clk 0:00:48.5]} 38. Ng5 {[%clk 0:00:03.2]} 38... h6
{[%clk 0:00:48.1]} 39. Nf3 {[%clk 0:00:03.3]} 39... Rd6 {[%clk 0:00:46]} 40. Kg3
{[%clk 0:00:03.3]} 40... Nd7 {[%clk 0:00:45.7]} 41. h4 {[%clk 0:00:02.4]} 41...
Nc5 {[%clk 0:00:45.7]} 42. h5 {[%clk 0:00:02.5]} 42... Ne4+ {[%clk 0:00:46]} 43.
Kf4 {[%clk 0:00:02.8]} 43... Nc3 {[%clk 0:00:46.3]} 44. Rc1 {[%clk 0:00:02.8]}
44... Ne2+ {[%clk 0:00:46.6]} 0-1

[Event "*** Titled Tuesday Blitz"]
[Site "Chess.com"]
[Date "2021.03.02"]
[Round "6"]
[White "lelya96"]
[Black "Synctel"]
[Result "1-0"]
[WhiteElo "2266"]
[BlackElo "2020"]
[TimeControl "180+1"]
[EndTime "11:07:07 PST"]
[Termination "lelya96 won on time"]

1. d4 {[%clk 0:02:58.4]} 1... Nf6 {[%clk 0:02:58.8]} 2. Bg5 {[%clk 0:02:56.1]}
2... d5 {[%clk 0:02:58.1]} 3. Nf3 {[%clk 0:02:55.5]} 3... c5 {[%clk 0:02:55.6]}
4. e3 {[%clk 0:02:53.6]} 4... Nc6 {[%clk 0:02:51.7]} 5. c3 {[%clk 0:02:52]} 5...
Qb6 {[%clk 0:02:39.4]} 6. Qc1 {[%clk 0:02:48.3]} 6... Bf5 {[%clk 0:02:26.5]} 7.
Be2 {[%clk 0:02:42.1]} 7... e6 {[%clk 0:02:17.3]} 8. O-O {[%clk 0:02:40]} 8...
Rc8 {[%clk 0:02:09.5]} 9. Nbd2 {[%clk 0:02:32.8]} 9... cxd4 {[%clk 0:02:05]} 10.
exd4 {[%clk 0:02:32]} 10... Be7 {[%clk 0:02:00.7]} 11. Re1 {[%clk 0:02:19.1]}
11... h6 {[%clk 0:01:56.4]} 12. Bf4 {[%clk 0:02:15.5]} 12... O-O {[%clk
0:01:54.7]} 13. Nb3 {[%clk 0:02:04.2]} 13... Ne4 {[%clk 0:01:49.7]} 14. Be3
{[%clk 0:01:54.2]} 14... a5 {[%clk 0:01:38.7]} 15. Nbd2 {[%clk 0:01:40]} 15...
a4 {[%clk 0:01:17.5]} 16. Nxe4 {[%clk 0:01:33.1]} 16... Bxe4 {[%clk 0:01:15.8]}
17. Nd2 {[%clk 0:01:32.3]} 17... Bg6 {[%clk 0:01:12.8]} 18. Bd1 {[%clk
0:01:03.4]} 18... Nb4 {[%clk 0:00:38.6]} 19. Bxa4 {[%clk 0:00:43.4]} 19... Nd3
{[%clk 0:00:36.8]} 20. Qd1 {[%clk 0:00:43.4]} 20... Nxe1 {[%clk 0:00:36.5]} 21.
Qxe1 {[%clk 0:00:43.7]} 21... Qxb2 {[%clk 0:00:36.7]} 22. Nf3 {[%clk 0:00:30.5]}
22... Rxc3 {[%clk 0:00:34.6]} 23. h3 {[%clk 0:00:28.5]} 23... Ra8 {[%clk
0:00:26.6]} 24. Qd1 {[%clk 0:00:19.1]} 24... Rxa4 {[%clk 0:00:23.8]} 25. Qxa4
{[%clk 0:00:17.7]} 25... Qxa1+ {[%clk 0:00:24.2]} 26. Kh2 {[%clk 0:00:18.5]}
26... Qb2 {[%clk 0:00:17.5]} 27. Qe8+ {[%clk 0:00:17.7]} 27... Kh7 {[%clk
0:00:17.8]} 28. Qxe7 {[%clk 0:00:17.1]} 28... Qxa2 {[%clk 0:00:13.2]} 29. Qxb7
{[%clk 0:00:17]} 29... Rb3 {[%clk 0:00:08.5]} 30. Qe7 {[%clk 0:00:16.3]} 30...
Rb1 {[%clk 0:00:07.7]} 31. Ne5 {[%clk 0:00:16]} 31... Qa1 {[%clk 0:00:06.2]} 32.
Nxg6 {[%clk 0:00:16]} 32... fxg6 {[%clk 0:00:06.4]} 33. Qxe6 {[%clk 0:00:15.7]}
33... Rh1+ {[%clk 0:00:05.5]} 34. Kg3 {[%clk 0:00:16.1]} 34... Qa2 {[%clk
0:00:03.4]} 35. Qe5 {[%clk 0:00:15.2]} 35... Re1 {[%clk 0:00:01.3]} 36. h4
{[%clk 0:00:15]} 1-0

[Event "*** Titled Tuesday Blitz"]
[Site "Chess.com"]
[Date "2021.03.02"]
[Round "6"]
[White "As0nchess"]
[Black "ShimanovAlex"]
[Result "1/2-1/2"]
[WhiteElo "2627"]
[BlackElo "2803"]
[TimeControl "180+1"]
[EndTime "11:07:08 PST"]
[Termination "Game drawn by repetition"]

1. e4 {[%clk 0:03:00.9]} 1... b6 {[%clk 0:02:58.4]} 2. d4 {[%clk 0:02:59.8]}
2... Bb7 {[%clk 0:02:58.8]} 3. Bd3 {[%clk 0:03:00.3]} 3... e6 {[%clk 0:02:59.3]}
4. Nf3 {[%clk 0:02:59.7]} 4... c5 {[%clk 0:02:57.7]} 5. c3 {[%clk 0:02:54.8]}
5... Nf6 {[%clk 0:02:57.3]} 6. Qe2 {[%clk 0:02:54.2]} 6... d5 {[%clk 0:02:57.4]}
7. e5 {[%clk 0:02:53.6]} 7... Nfd7 {[%clk 0:02:57.4]} 8. h4 {[%clk 0:02:52.4]}
8... Nc6 {[%clk 0:02:56.8]} 9. a3 {[%clk 0:02:48]} 9... h6 {[%clk 0:02:55.2]}
10. b4 {[%clk 0:02:45.7]} 10... a6 {[%clk 0:02:50.7]} 11. Nbd2 {[%clk
0:02:42.1]} 11... Qc7 {[%clk 0:02:46.9]} 12. h5 {[%clk 0:02:36.5]} 12... cxd4
{[%clk 0:02:25.3]} 13. cxd4 {[%clk 0:02:36.2]} 13... b5 {[%clk 0:02:25.8]} 14.
Nb3 {[%clk 0:02:30.5]} 14... Nb6 {[%clk 0:02:26.1]} 15. Nc5 {[%clk 0:02:28.8]}
15... Nc4 {[%clk 0:02:26.4]} 16. O-O {[%clk 0:02:27.6]} 16... Bxc5 {[%clk
0:02:25]} 17. bxc5 {[%clk 0:02:26.3]} 17... O-O-O {[%clk 0:02:20.9]} 18. Be3
{[%clk 0:02:25.3]} 18... f6 {[%clk 0:02:18.1]} 19. exf6 {[%clk 0:02:24.9]} 19...
gxf6 {[%clk 0:02:19]} 20. a4 {[%clk 0:02:23.2]} 20... b4 {[%clk 0:02:07.7]} 21.
Nd2 {[%clk 0:02:21.4]} 21... Nxd2 {[%clk 0:02:03.1]} 22. Qxd2 {[%clk 0:02:22.3]}
22... e5 {[%clk 0:02:02.8]} 23. Bf5+ {[%clk 0:02:15.4]} 23... Kb8 {[%clk
0:02:02.7]} 24. a5 {[%clk 0:02:13.1]} 24... Bc8 {[%clk 0:01:53.3]} 25. Bxc8
{[%clk 0:02:10.8]} 25... Qxc8 {[%clk 0:01:54.2]} 26. Rab1 {[%clk 0:02:10]} 26...
Ka7 {[%clk 0:01:51.2]} 27. f3 {[%clk 0:02:03.9]} 27... Rhg8 {[%clk 0:01:47.7]}
28. Rb2 {[%clk 0:02:01.6]} 28... Rd7 {[%clk 0:01:38.6]} 29. Rf2 {[%clk
0:01:59.1]} 29... Qe8 {[%clk 0:01:34.8]} 30. dxe5 {[%clk 0:01:52.1]} 30... fxe5
{[%clk 0:01:33.2]} 31. Rxb4 {[%clk 0:01:51.6]} 31... d4 {[%clk 0:01:32.1]} 32.
Bxh6 {[%clk 0:01:37.8]} 32... Nxb4 {[%clk 0:01:25.2]} 33. Qxb4 {[%clk
0:01:38.7]} 33... Rb7 {[%clk 0:01:25.7]} 34. Qc4 {[%clk 0:01:33.2]} 34... Rh8
{[%clk 0:01:01.9]} 35. c6 {[%clk 0:01:28.4]} 35... Rc7 {[%clk 0:01:00]} 36. Qc5+
{[%clk 0:01:25.9]} 36... Ka8 {[%clk 0:00:58.6]} 37. Bg7 {[%clk 0:01:02.8]} 37...
Rxg7 {[%clk 0:00:43.3]} 38. c7 {[%clk 0:01:02.2]} 38... Qc8 {[%clk 0:00:41.8]}
39. Rc2 {[%clk 0:00:54.6]} 39... d3 {[%clk 0:00:06.4]} 40. Qd5+ {[%clk
0:00:43.2]} 40... Ka7 {[%clk 0:00:05.9]} 41. Qc5+ {[%clk 0:00:41.6]} 41... Ka8
{[%clk 0:00:06.4]} 42. Qd5+ {[%clk 0:00:34.8]} 42... Ka7 {[%clk 0:00:06.7]} 43.
Qc5+ {[%clk 0:00:34.8]} 43... Ka8 {[%clk 0:00:07.2]} 1/2-1/2

[Event "*** Titled Tuesday Blitz"]
[Site "Chess.com"]
[Date "2021.03.02"]
[Round "6"]
[White "Rondo_Capriccioso"]
[Black "catzapto"]
[Result "0-1"]
[WhiteElo "2460"]
[BlackElo "2093"]
[TimeControl "180+1"]
[EndTime "11:07:08 PST"]
[Termination "catzapto won by checkmate"]

1. e4 {[%clk 0:03:00.9]} 1... c5 {[%clk 0:02:59.3]} 2. Nf3 {[%clk 0:03:01.3]}
2... e6 {[%clk 0:02:59.4]} 3. d4 {[%clk 0:03:00.6]} 3... cxd4 {[%clk 0:03:00.3]}
4. Nxd4 {[%clk 0:03:00]} 4... Nf6 {[%clk 0:03:00.6]} 5. Bd3 {[%clk 0:02:59.1]}
5... Nc6 {[%clk 0:02:59.9]} 6. Nxc6 {[%clk 0:02:59.7]} 6... bxc6 {[%clk
0:03:00.4]} 7. O-O {[%clk 0:03:00.4]} 7... d5 {[%clk 0:03:00.8]} 8. Nc3 {[%clk
0:02:58.5]} 8... dxe4 {[%clk 0:02:54.3]} 9. Nxe4 {[%clk 0:02:57.5]} 9... Nxe4
{[%clk 0:02:54.1]} 10. Bxe4 {[%clk 0:02:58.4]} 10... Bb7 {[%clk 0:02:53]} 11.
Qf3 {[%clk 0:02:57.3]} 11... Qc7 {[%clk 0:02:48.5]} 12. Bf4 {[%clk 0:02:56.7]}
12... Bd6 {[%clk 0:02:48.7]} 13. Bxd6 {[%clk 0:02:51.6]} 13... Qxd6 {[%clk
0:02:49.6]} 14. Rad1 {[%clk 0:02:51.3]} 14... Qc7 {[%clk 0:02:50.1]} 15. Qa3
{[%clk 0:02:45.1]} 15... Qe7 {[%clk 0:02:46.3]} 16. Qa4 {[%clk 0:02:44.2]} 16...
O-O {[%clk 0:02:40.5]} 17. Bxc6 {[%clk 0:02:42.5]} 17... Bxc6 {[%clk 0:02:41.4]}
18. Qxc6 {[%clk 0:02:42.8]} 18... Rfc8 {[%clk 0:02:41.7]} 19. Qe4 {[%clk
0:02:42.9]} 19... Rab8 {[%clk 0:02:32.5]} 20. b3 {[%clk 0:02:41.2]} 20... Qa3
{[%clk 0:02:29]} 21. Rd2 {[%clk 0:02:33.1]} 21... Qxa2 {[%clk 0:02:26.6]} 22.
Rfd1 {[%clk 0:02:33.2]} 22... g6 {[%clk 0:02:21.9]} 23. h4 {[%clk 0:02:33.4]}
23... Qb2 {[%clk 0:02:11.2]} 24. h5 {[%clk 0:02:33.3]} 24... gxh5 {[%clk
0:02:03.7]} 25. Qh4 {[%clk 0:02:14.1]} 25... Qe5 {[%clk 0:01:33.8]} 26. Rd3
{[%clk 0:02:02.3]} 26... Rc3 {[%clk 0:01:33.4]} 27. Rxc3 {[%clk 0:01:11.8]}
27... Qxc3 {[%clk 0:01:28.5]} 28. Rd3 {[%clk 0:01:11.6]} 28... Qe1+ {[%clk
0:01:26.2]} 29. Kh2 {[%clk 0:01:10.6]} 29... Qe5+ {[%clk 0:01:11.4]} 30. f4
{[%clk 0:01:11]} 30... Qf5 {[%clk 0:01:03.7]} 31. Rg3+ {[%clk 0:01:11.2]} 31...
Kf8 {[%clk 0:01:02.3]} 32. Rg5 {[%clk 0:01:10.3]} 32... Qxc2 {[%clk 0:01:01]}
33. Rxh5 {[%clk 0:01:09.1]} 33... Kg8 {[%clk 0:00:36.3]} 34. f5 {[%clk
0:00:39.4]} 34... Qc7+ {[%clk 0:00:30.1]} 35. g3 {[%clk 0:00:29]} 35... Rxb3
{[%clk 0:00:29.4]} 36. Qg5+ {[%clk 0:00:20.7]} 36... Kf8 {[%clk 0:00:22.4]} 37.
Qh6+ {[%clk 0:00:10.1]} 37... Ke8 {[%clk 0:00:19.4]} 38. Qxh7 {[%clk 0:00:09.2]}
38... Qxg3+ {[%clk 0:00:19.1]} 39. Kh1 {[%clk 0:00:09]} 39... Rb1# {[%clk
0:00:18.8]} 0-1